Cogmind - Beta 14 @@@ ROGUE MODE // 2024.12.26 @ 19:41:02 Player: PTS Result: Destroyed by G-47 Trooper with Particle Gun Performance ------------- Evolutions (0) 0 Regions Visited (1) 200 Robots Destroyed (6) 30 Value Destroyed (68) 68 Prototype IDs (0) 0 Alien Tech Used (0) 0 Bonus (0) 0 TOTAL SCORE: 298 Bonus ------- None Cogmind --------- Core Integrity 0/250 Matter 49/300 Energy 74/100 System Corruption 0% Temperature Cool (58) Movement Rolling (100) Location -10/Materials Parts ------- > --- POWER (1) -------- (None) > --- PROPULSION (2) --- Compact Wheel > --- UTILITY (2) ------ Terrain Scan Processor > --- WEAPON (2) ------- Small Laser > --- INVENTORY (5) ---- Compact Wheel Small Storage Unit Peak State ------------ > --- POWER ------------ (None) > --- PROPULSION ------- Compact Wheel Compact Wheel > --- UTILITY ---------- Improved Terrain Scanner Terrain Scan Processor > --- WEAPON ----------- EM Pulse Gun Medium Laser > --- INVENTORY -------- Compact Wheel Small Storage Unit Grenade Launcher [Rating: 9] Favorites ----------- Power None Propulsion Compact Wheel Wheel Compact Wheel Utility Improved Terrain Scanner Device Improved Terrain Scanner Storage Small Storage Unit Processor Terrain Scan Processor Weapon Medium Laser Energy Gun Medium Laser Launcher Grenade Launcher Build | -11 -10 ------- Run | Yrd Mat Slots Evolved . | . . Power . | . . Propulsion . | . . Utility . | . . Weapon . | . . Parts Attached 16 | 7 9 Power . | . . Engine . | . . Core . | . . Reactor . | . . Propulsion 2 | 2 . Treads . | . . Leg . | . . Wheel 2 | 2 . Hover . | . . Flight . | . . Utility 3 | 2 1 Device 1 | 1 . Storage 1 | 1 . Processor 1 | . 1 Hackware . | . . Protection . | . . Artifact . | . . Weapon 11 | 3 8 Energy Gun 8 | 3 5 Energy Cannon . | . . Ballistic Gun . | . . Ballistic Cannon . | . . Launcher 3 | . 3 Special Weapon . | . . Impact Weapon . | . . Slashing Weapon . | . . Piercing Weapon . | . . Special Melee Weapon . | . . Unidentified Prototypes . | . . Parts Lost 5 | . 5 Power . | . . Propulsion 1 | . 1 Utility 1 | . 1 Weapon 3 | . 3 Highest Loss Streak 5 | . 5 To Critical Strikes . | . . Average Slot Usage (%) 82 | . 82 Wheel 27 | . 27 Device 12 | . 12 Storage 10 | . 10 Processor 3 | . 3 Energy Gun 19 | . 19 Launcher 7 | . 7 Peak Build Rating 9 | 8 9 Average Rating 7 | 4 7 On Entrance 4 | . 8 Naked Turns . | . . Heaviest Build 11 | 10 11 Greatest Support 32 | 32 32 Greatest Overweight (x) . | . . Average Overweight (x) . | . . Largest Inventory Capacity 8 | 8 8 Average Capacity 7 | 6 7 Most Carried 3 | 2 3 Average Carried 1 | . 2 Final Capacity 8 | 8 5 Final Carried 2 | 1 2 Class Distribution -------------------- 100% | Mutant Dominant Class ---------------- Mutant | -10/Materials Resources | -11 -10 ----------- Run | Yrd Mat Matter Collected 164 | 124 40 Remotely . | . . Salvage Created 184 | 109 75 Parts 13 | 4 9 Haulers Intercepted . | . . Recyclers Shooed . | . . Parts Field Recycled . | . . Retrieved Matter . | . . Parts Self-Destructed . | . . Prevented . | . . Kills | -11 -10 ------- Run | Yrd Mat Combat Hostiles Destroyed 1 | . 1 AOE 1 | . 1 Classes Destroyed 5 | 3 2 Worker 1 | 1 . Builder 2 | . 2 Tunneler 1 | 1 . Recycler 1 | 1 . Grunt 1 | . 1 Best Kill Streak 2 | 2 1 Combat Bots Only 1 | . 1 Max Kills in Single Turn 1 | 1 1 Gunslinging . | . . Exploded 1 | . 1 Melee . | . . Uniques/NPCs Destroyed . | . . Combat | -11 -10 -------- Run | Yrd Mat Hostile Shots Fired 43 | . 43 Missed 9 | . 9 Damage Taken 536 | . 536 Core 257 | . 257 Absorbed by Shields . | . . Core Remaining (%) 100 | 100 . Volleys Fired 29 | 9 20 Largest 2 | 2 2 Hottest 90 | 90 90 Shots Fired 41 | 18 23 Gun 33 | 18 15 Cannon . | . . Launcher 8 | . 8 Special . | . . Kinetic . | . . Thermal 17 | 9 8 Explosive 8 | . 8 Electromagnetic 16 | 9 7 Robot Hit Streak 6 | 4 6 Robot Miss Streak 3 | 3 1 Penetration Max . | . . Secondary Targets . | . . Shots Hit Robots 20 | 9 11 Core Hits 13 | 4 9 Critical Kills . | . . Critical Parts Destroyed . | . . Critical Strikes . | . . Melee Attacks . | . . Impact . | . . Slashing . | . . Piercing . | . . Sneak Attacks . | . . Combat Hostiles . | . . Follow-up Attacks . | . . Damage Inflicted 392 | 117 275 Guns 254 | 117 137 Cannons . | . . Explosions 138 | . 138 Melee . | . . Ramming . | . . Kinetic . | . . Thermal 231 | 76 155 Explosive 53 | . 53 Electromagnetic 108 | 41 67 Impact . | . . Slashing . | . . Piercing . | . . Highest Corruption . | . . Average Corruption . | . . Corruption Purged . | . . Corruption Blocked . | . . Overload Shots . | . . Overflow Damage 1 | . 1 Projectiles . | . . Explosions 1 | . 1 Melee . | . . Knockbacks . | . . Impact . | . . Kinetic . | . . Secondary . | . . Self-Inflicted Damage 63 | . 63 Shots 3 | . 3 Rammed . | . . Targets Rammed . | . . Kicked . | . . Crushed . | . . Highest Temperature 72 | 55 72 Average Temperature 22 | 20 24 Received Heat Transfer 297 | . 297 Siege Activations . | . . Robots Corrupted . | . . Combat Hostiles . | . . Parts Fried . | . . Impact Corruptions . | . . Robots Melted . | . . Combat Hostiles . | . . Parts Melted . | . . Heat Transferred 620 | 222 398 Parts Sabotaged . | . . Parts Stolen . | . . Parts Stripped . | . . Power Chain Reactions 1 | . 1 Alert | -11 -10 ------- Run | Yrd Mat Peak Influence 91 | 15 91 Initial 9 | . 9 Average 29 | 3 37 Maximum Alert Level . | . . Low Security (%) 100 | 100 100 Level 1 . | . . Level 2 . | . . Level 3 . | . . Level 4 . | . . Level 5 . | . . High Security . | . . Max Security . | . . Squads Dispatched . | . . Investigation . | . . Extermination . | . . Reinforcement . | . . Assault . | . . Garrison . | . . Intercept . | . . Searches Triggered . | . . Construction Impeded . | . . Haulers Reinforced . | . . Active Scanning Responses . | . . Cargo Convoy Interrupts . | . . Stealth | -11 -10 --------- Run | Yrd Mat Distress Signals . | . . Communications Jammed . | . . Distress Signals . | . . Times Spotted 5 | . 5 Peak Tracking Total 5 | . 5 Tactical Retreats . | . . Traps | -11 -10 ------- Run | Yrd Mat Traps Triggered . | . . Indirectly . | . . Trap Hack Attempts . | . . Triggered . | . . Disarmed . | . . Reprogrammed . | . . Reused . | . . Traps Extracted . | . . Installed . | . . Triggered . | . . Machines | -11 -10 ---------- Run | Yrd Mat Machines Disabled 1 | . 1 Max in Single Turn 1 | . 1 Machines Repaired . | . . Machines Dismantled . | . . Machines Sabotaged . | . . Overloaded Fab Kills . | . . Hacking | -11 -10 --------- Run | Yrd Mat Machines Accessed . | . . Terminals . | . . Fabricators . | . . Repair Stations . | . . Recycling Units . | . . Scanalyzers . | . . Garrison Access . | . . Total Hacks . | . . Successful . | . . Failed . | . . Catastrophic . | . . Database Lockouts . | . . Manual . | . . Terminals . | . . Fabricators . | . . Repair Stations . | . . Recycling Units . | . . Scanalyzers . | . . Garrison Access . | . . Terminal Hacks . | . . Fabricator Hacks . | . . Repair Station Hacks . | . . Recycling Unit Hacks . | . . Scanalyzer . | . . Garrison Access Hacks . | . . Unauthorized Hacks . | . . Terminals . | . . Fabricators . | . . Repair Stations . | . . Recycling Units . | . . Scanalyzers . | . . Garrison Access . | . . Data Cores Recovered . | . . Used . | . . Hacking Detections . | . . Full Trace Events . | . . Feedback Events . | . . Feedback Blocked . | . . Robot Schematics Acquired . | . . Robots Built . | . . Authchips . | . . Time . | . . Total Robot Build Rating . | . . Part Schematics Acquired . | . . Parts Built . | . . Authchips . | . . Time . | . . Total Part Build Rating . | . . Parts Repaired . | . . Time . | . . Parts Recycled . | . . Recycled Matter . | . . Retrieved Matter . | . . Retrieved Components . | . . Parts Scanalyzed . | . . Part Schematics Acquired . | . . Parts Damaged . | . . Bothacking | -11 -10 ------------ Run | Yrd Mat Used RIF Installer . | . . Robots Hacked . | . . Non-combat . | . . Combat . | . . Robot Hacks Applied . | . . Relay Couplers Released . | . . Fabnet Peak Effective % . | . . Robots Rewired . | . . Allies Hacked . | . . Hacks Repelled . | . . Allies | -11 -10 -------- Run | Yrd Mat Total Allies . | . . Largest Group . | . . Highest-Rated Group . | . . Highest-Rated Ally . | . . Total Orders . | . . Ally Attacks . | . . Total Damage . | . . Kills . | . . Allies Corrupted . | . . Allies Melted . | . . Intel | -11 -10 ------- Run | Yrd Mat Robot Analysis Total . | . . Derelict Logs Recovered . | . . Drone Launches . | . . Drone Recoveries . | . . Exploration | -11 -10 ------------- Run | Yrd Mat Turns Passed 461 | 103 358 Spaces Moved 182 | 64 118 Core 6 | 6 . Treads . | . . Legs . | . . Wheels 176 | 58 118 Hover . | . . Flight . | . . Fastest Speed 50 | 50 100 Average Speed 98 | 95 100 Slowest Speed 100 | 100 100 Overloaded Moves . | . . Propulsion Burnouts . | . . Robots Hopped . | . . Cave-ins Triggered . | . . Exploration Rate (%) 12 | 5 20 Regions Visited 1 Branch Regions . Pre-discovered Areas . | . . Known Exits Taken . | . . Unknown Exits Taken 1 | 1 . Scrap Searched . | . . Spaces Dug 39 | . 39 Terrain Destroyed 60 | . 60 Melee . | . . Projectile . | . . AOE 60 | . 60 Terrain Rammed . | . . Walls Destroyed . | . . Machines Disabled . | . . Actions | -11 -10 --------- Run | Yrd Mat Total 419 | 88 331 Wait 181 | . 181 Move 181 | 63 118 Hop . | . . Pick Up 11 | 8 3 Fast Attach . | . . Attach 8 | 6 2 Detach . | . . Swap 8 | 1 7 Drop 1 | 1 . Fire 29 | 9 20 Melee . | . . Ram . | . . Kick . | . . Crush . | . . Escape Stasis . | . . Rewire . | . . Trap . | . . Miscellaneous . | . . Route ------- -11/Scrapyard -10/Materials History --------- Turn | Location | Event 11 | -11/Scrapyard | Discovered new exit (range 16) 104 | -11/Scrapyard | Entered Materials 307 | -10/Materials | Build established: Mutant 448 | -10/Materials | Core integrity fell below 50% 456 | -10/Materials | Core integrity fell below 20% 462 | -10/Materials | Destroyed by G-47 Trooper with Particle Gun Last Messages --------------- Hadron Collector disabled. T-07 Excavator is excavating. Imp. Terrain Scanner destroyed. T-07 Excavator is excavating. Chain reaction triggered in Ion Engine. G-34 Mercenary destroyed. EM Pulse Gun destroyed. Destroyed EM Pulse Gun. Grenade Launcher destroyed. T-07 Excavator is excavating. Acquired 40 matter. U-05 Engineer lays Concrete. T-07 Excavator is excavating. U-05 Engineer builds a Wall. Com. Wheel destroyed. Med. Laser destroyed. U-05 Engineer lays Concrete. Acquired Sml. Laser. Critical hit (Burn: +37). R-06 Scavenger collects Corrupted Aluminum Leg. Map ----- +----------------------------------------------------+ | | | | | | | | | | | | | | | | | | | | | | | | | | | | | | | | | | | | | | | # # ############?##??#???#?????????#????? | | ##???######???????????????? | | #?####!!!!##?#????????????? | | #??##! !#?????##???????? | | #??#; #??#???????????? | | ########+######### g ;###??????????????? | | ####### ##### r g@;#??#?????????????? | | ! ###;g ;#??#?????????????? | | ### #????????????????? | | """ "" #?# t##?#?##???????????? | | """ #### #???????#?????????? | | """ " "" #??####?????????????????? | | #???????????#???????????? | | ####### #?????????#??#??????????? | | """ """" #?#???# #???#???????????????????? | | """ """" ??#??#? #?????????#???#?????????? | | """ """" ????#?#+#??#????????????????????? | | ????????????????#???????????????? | | ?? ??????????#??#??????????????????? | | ###/##? ?? "???"????#????????????????????? | | ??? ?? ??? ??????????#?????????????????????? | | ??????????????????????????????#?????????????? | | ? ??????????????????????????????????????????? | | ?? ?? ??????????????????????????????????????? | | ???????????????????????????????????????????? | | ???????????????????????????????????????????? | | ????????????????????????????????????????????? | | ????????????????????????????????????????????? | | ????????????????????????????????????????????? | | ????????????????????????????????????????????? | | ????????????????????????????????????????????? | +----------------------------------------------------+ Best States ------------- Heat Dissipation 25 Energy Generation 5 Energy Capacity 100 Matter Stores 154 Matter Capacity 300 Sight Range 16 Terrain Scan Range 16 Terrain Scan Density 85 Evasion (%) 40 Item Schematics ----------------- None Robot Schematics ------------------ None Fabricated ------------ Nothing Alien Tech Used ----------------- None Achievements -------------- None Challenges ------------ None Game ------ Seed SurveybotImpulseBroadsword Manual? 0 Play Time 00:07:05 Cumulative 8.9 hours Start 2024.12.26 @ 19:36:59 End 2024.12.26 @ 19:41:02 Sessions 1 Manual Loads 0 Difficulty Rogue Special Mode None Game No. 15 Rogue 15 Adventurer 0 Explorer 0 Win Type - Total 0 Types 0/0/0/0/0/0/0/0/0 Lore% 5 Gallery% 17 Achievement% 18 Wizard Run 0 Options --------- Layout 1 ASCII 0 Keyboard 0 Movement Mouse Keybinds 0 Fullscreen 1 Font 24/Smallcaps Map View 50x35 Zoom Use 0% Tactical HUD 0 Map Filters NONE Filters NONE Steam 1 RUN: 47299171-c04c-4c5a-8e70-9d3e6570fc5b